[Event "IIFL Wealth 4th Mumbai Open"]
[Site "Mumbai"]
[Date "2018.12.31"]
[Round "2"]
[White "Borade, Yash"]
[Black "Thatte, Ashish P"]
[Result "0-1"]
[ECO "C05"]
[WhiteElo "1478"]
[BlackElo "1957"]
[Annotator "NA"]
[PlyCount "96"]
[EventDate "2018.12.30"]
[EventType "swiss"]
[EventCountry "IND"]
[SourceTitle "playchess.com"]
[Source "ChessBase"]
[SourceQuality "1"]
[TimeControl "40/5400+30:1800+30"]

1. e4 {[%emt 0:00:00]} e6 {[%emt 0:00:01]} 2. d4 {[%emt 0:00:00]} d5 {[%emt 0:00:06]} 3. Nd2 {[%emt 0:00:00]} Nf6 {[%emt 0:00:07]} 4. e5 {[%emt 0:00:00]} Nfd7 {[%emt 0:00:04]} 5. Bd3 {[%emt 0:00:02]} c5 {[%emt 0:00:06]} 6. c3 {[%emt 0:00:04]} Nc6 {[%emt 0:00:04]} 7. Ngf3 {[%emt 0:00:16]} Be7 {[%emt 0:10:05]} 8. O-O {[%emt 0:04:45]} O-O {[%emt 0:09:05]} 9. a3 {[%emt 0:13:47]} f6 {[%emt 0:13:40]} 10. exf6 {[%emt 0:04:33]} Nxf6 {[%emt 0:00:08]} 11. Ne5 {[%emt 0:12:34]} cxd4 {[%emt 0:20:43]} 12. Nxc6 {[%emt 0:00:33]} bxc6 {[%emt 0:00:02]} 13. cxd4 {[%emt 0:00:07]} c5 {[%emt 0:04:45]} 14. dxc5 {[%emt 0:12:14]} Bxc5 {[%emt 0:18:45]} 15. Nf3 {[%emt 0:01:22]} Qb6 {[%emt 0:09:06]} 16. Qe2 {[%emt 0:09:01]} Ne4 {[%emt 0:04:09]} 17. b4 {[%emt 0:03:55]} Bxf2+ {[%emt 0:02:02]} 18. Rxf2 {[%emt 0:02:31]} Qxf2+ {[%emt 0:00:14]} 19. Qxf2 {[%emt 0:00:07]} Nxf2 {[%emt 0:00:08]} 20. Kxf2 {[%emt 0:00:08]} e5 {[%emt 0:00:08]} 21. Bb5 {[%emt 0:00:19]} Rb8 {[%emt 0:04:41]} 22. Bc6 {[%emt 0:00:48]} Bb7 {[%emt 0:00:15]} 23. Bxb7 {[%emt 0:00:20]} Rxb7 {[%emt 0:00:02]} 24. Ke1 {[%emt 0:04:46]} e4 {[%emt 0:00:26]} 25. Nd4 {[%emt 0:00:07]} Rbf7 {[%emt 0:00:16]} 26. Bb2 {[%emt 0:06:48]} Rf2 {[%emt 0:00:28]} 27. Ne2 {[%emt 0:00:26]} Rxg2 {[%emt 0:00:12]} 28. Bd4 {[%emt 0:00:50]} Rxh2 {[%emt 0:02:46]} 29. Kd2 {[%emt 0:00:15]} Rf3 {[%emt 0:00:09]} 30. Be5 {[%emt 0:07:30]} Rd3+ {[%emt 0:00:11]} 31. Ke1 {[%emt 0:00:07]} Rh1+ {[%emt 0:01:20]} 32. Kf2 {[%emt 0:00:10]} Rf3+ {[%emt 0:00:30]} 33. Kg2 {[%emt 0:00:15]} Rxa1 {[%emt 0:00:08]} 34. Bxa1 {[%emt 0:00:07]} Rxa3 {[%emt 0:00:03]} 35. Bd4 {[%emt 0:00:58]} a6 {[%emt 0:00:38]} 36. Nc3 {[%emt 0:01:06]} Kf7 {[%emt 0:00:51]} 37. Be5 {[%emt 0:02:10]} g5 {[%emt 0:00:08]} 38. b5 {[%emt 0:01:20]} Rxc3 {[%emt 0:01:30]} 39. Bxc3 {[%emt 0:00:58]} axb5 {[%emt 0:00:02]} 40. Kf2 {[%emt 0:00:00]} h5 {[%emt 0:00:00]} 41. Ke3 {[%emt 0:03:46]} Ke6 {[%emt 0:01:04]} 42. Kd4 {[%emt 0:00:48]} h4 {[%emt 0:05:29]} 43. Be1 {[%emt 0:01:33]} h3 {[%emt 0:00:16]} 44. Bg3 {[%emt 0:00:05]} Kf5 {[%emt 0:02:09]} 45. Kxd5 {[%emt 0:06:38]} e3 {[%emt 0:01:14]} 46. Kd4 {[%emt 0:04:23]} e2 {[%emt 0:01:30]} 47. Ke3 {[%emt 0:00:09]} h2 {[%emt 0:00:16]} 48. Bf4 {[%emt 0:01:03]} e1=Q+ {[%emt 0:00:25]} 0-1

[Event "IIFL Wealth 4th Mumbai Open"]
[Site "Mumbai"]
[Date "2018.12.31"]
[Round "2"]
[White "Raghu, Ram Reddy Seelam"]
[Black "Aditya, Varun Gampa"]
[Result "0-1"]
[ECO "B49"]
[WhiteElo "1472"]
[BlackElo "1809"]
[Annotator "NA"]
[PlyCount "65"]
[EventDate "2018.12.30"]
[EventType "swiss"]
[EventCountry "IND"]
[SourceTitle "playchess.com"]
[Source "ChessBase"]
[SourceQuality "1"]
[TimeControl "40/5400+30:1800+30"]

1. e4 c5 2. Nf3 e6 3. d4 cxd4 4. Nxd4 Nc6 5. Nc3 Qc7 6. Be3 a6 7. Be2 Nf6 8. O-O Bb4 9. f3 Bxc3 10. bxc3 d5 11. Bd3 e5 12. Nb3 dxe4 13. fxe4 Ng4 14. Qf3 Nxe3 15. Qxe3 O-O 16. Rad1 Be6 17. Rf3 Bg4 18. Rg3 f5 19. Rxg4 fxg4 20. Qg5 Na5 21. Qxg4 Nxb3 22. Qe6+ Kh8 23. Qxb3 Rad8 24. Qa3 Rc8 25. c4 Qc5+ {Qb4 Qb5 Qxb5 Rc7} 26. Qxc5 Rxc5 27. Rb1 Rf7 28. h3 Ra5 29. Rb2 h5 30. g3 Kg8 31. Kg2 Kh8 32. Kg1 Kg8 33. Kg2 0-1

[Event "IIFL Wealth 4th Mumbai Open"]
[Site "Mumbai"]
[Date "2018.12.31"]
[Round "2"]
[White "Bhaskar, N S"]
[Black "Devesh, Anand Naik"]
[Result "0-1"]
[ECO "A05"]
[WhiteElo "1463"]
[BlackElo "1763"]
[Annotator "NA"]
[PlyCount "124"]
[EventDate "2018.12.30"]
[EventType "swiss"]
[EventCountry "IND"]
[SourceTitle "playchess.com"]
[Source "ChessBase"]
[SourceQuality "1"]
[TimeControl "40/5400+30:1800+30"]

1. Nf3 Nf6 2. g3 g6 3. Bg2 Bg7 4. O-O O-O 5. Re1 d5 6. c4 d4 7. e4 c5 8. d3 Nc6 9. e5 Nd7 10. Bf4 Nf6 11. Bc1 Nd7 12. Bf4 f6 13. exf6 Nxf6 14. Bc1 Nd7 15. Bf4 Nf6 16. Ne5 Nd7 17. Nf3 Nf6 18. Ne5 Nxe5 19. Bxe5 Ng4 20. Bxg7 Nxf2 21. Qe2 Kxg7 22. Qxe7+ Qxe7 23. Rxe7+ Kh6 24. Re1 Kg7 25. Re7+ Kh6 26. Nd2 Nxd3 27. b3 Bf5 28. Rxb7 Rae8 29. Re7 Ra8 30. Rb7 Rae8 31. Re7 Ra8 32. Rb7 Rae8 33. Re7 Ra8 34. Rb7 Rae8 35. Bf1 Nf2 36. Bg2 Nd3 37. Bf1 Nf2 38. Bg2 Nd3 39. Bf1 Nf2 40. Bg2 Nd3 41. Bf1 Nf2 42. Bg2 Nd3 43. Bf1 Nf2 44. Bg2 Nd3 45. Bf1 Nf2 46. Bg2 Nd3 47. Bf1 Nf2 48. h4 Nh3+ 49. Kh2 Bc8 {Kg1 Bf5+ Kh2 Bc8 Kg1 Bf5+ Kh2 Bc8 Kg1 Bf5+ Kh2 Bc8 Kg1 Bf5+ Kh2 Bc8} 50. Rc7 Rf2+ 51. Bg2 Rxd2 52. Rxc8 Rxc8 53. Kxh3 Re8 54. Rf1 Ree2 55. Bd5 Rf2 56. Re1 Rde2 57. Rf1 Rd2 58. Re1 Rde2 59. Rd1 Kg7 60. b4 Rh2+ 61. Kg4 h5+ 62. Kg5 Rhf2 {Kg4 Rh2+ Kg5 Rhf2 Kg4 Rh2+ Kg5 Rhf2 Kg4 Rh2+ Kg5 Rhf2} 0-1

[Event "IIFL Wealth 4th Mumbai Open"]
[Site "Mumbai"]
[Date "2018.12.31"]
[Round "2"]
[White "Apoorv, Kamble"]
[Black "Kapadi, Yash"]
[Result "1/2-1/2"]
[ECO "B20"]
[WhiteElo "1458"]
[BlackElo "1749"]
[Annotator "NA"]
[PlyCount "86"]
[EventDate "2018.12.30"]
[EventType "swiss"]
[EventCountry "IND"]
[SourceTitle "playchess.com"]
[Source "ChessBase"]
[SourceQuality "1"]
[TimeControl "40/5400+30:1800+30"]

1. e4 {[%emt 0:00:00]} c5 {[%emt 0:00:07]} 2. b3 {[%emt 0:00:00]} e6 {[%emt 0:00:08]} 3. Bb2 {[%emt 0:00:13]} Nf6 {[%emt 0:02:16]} 4. e5 {[%emt 0:05:50]} Nd5 {[%emt 0:00:07]} 5. c4 {[%emt 0:00:27]} Nb6 {[%emt 0:04:03]} 6. Nc3 {[%emt 0:01:47]} Be7 {[%emt 0:00:54]} 7. Nf3 {[%emt 0:16:22]} Nc6 {[%emt 0:00:52]} 8. Be2 {[%emt 0:01:55]} O-O {[%emt 0:00:14]} 9. O-O {[%emt 0:00:15]} f6 {[%emt 0:02:32]} 10. Ne4 {[%emt 0:05:05]} fxe5 {[%emt 0:01:43]} 11. Nxe5 {[%emt 0:00:14]} Nxe5 {[%emt 0:05:18]} 12. Bxe5 {[%emt 0:00:33]} d5 {[%emt 0:00:20]} 13. Ng3 {[%emt 0:05:22]} Nd7 {[%emt 0:05:04]} 14. d4 {[%emt 0:02:02]} Nxe5 {[%emt 0:06:30]} 15. dxe5 {[%emt 0:00:21]} d4 {[%emt 0:00:12]} 16. Bd3 {[%emt 0:00:40]} Rf7 {[%emt 0:04:39]} 17. f4 {[%emt 0:01:28]} Qf8 {[%emt 0:02:11]} 18. Qg4 {[%emt 0:00:45]} g6 {[%emt 0:01:58]} 19. h4 {[%emt 0:05:02]} Qg7 {[%emt 0:08:13]} 20. Be4 {[%emt 0:08:53]} Rb8 {[%emt 0:03:30]} 21. Rad1 {[%emt 0:12:58]} b5 {[%emt 0:02:56]} 22. Rd3 {[%emt 0:00:54]} bxc4 {[%emt 0:00:12]} 23. bxc4 {[%emt 0:00:06]} Bf8 {[%emt 0:15:09]} 24. Ne2 {[%emt 0:02:12]} Qh6 {[%emt 0:10:09]} 25. Rh3 {[%emt 0:06:08]} Qh5 {[%emt 0:10:59]} 26. Qxh5 {[%emt 0:01:16]} gxh5 {[%emt 0:00:02]} 27. Rb3 {[%emt 0:05:59]} Rb4 {[%emt 0:04:27]} 28. Rxb4 {[%emt 0:05:17]} cxb4 {[%emt 0:00:01]} 29. Ng3 {[%emt 0:00:51]} Ba6 {[%emt 0:01:59]} 30. Bd3 {[%emt 0:00:04]} Be7 {[%emt 0:00:55]} 31. Nxh5 {[%emt 0:01:28]} Bxh4 {[%emt 0:00:26]} 32. g4 {[%emt 0:00:12]} Bd8 {[%emt 0:00:16]} 33. g5 {[%emt 0:00:07]} Rc7 {[%emt 0:00:29]} 34. Nf6+ {[%emt 0:02:03]} Bxf6 {[%emt 0:00:23]} 35. gxf6 {[%emt 0:00:02]} Bb7 {[%emt 0:01:14]} 36. Kf2 {[%emt 0:01:10]} a5 {[%emt 0:00:18]} 37. Rg1+ {[%emt 0:00:05]} Kh8 {[%emt 0:00:03]} 38. Rg3 {[%emt 0:01:38]} Ba6 {[%emt 0:00:49]} 39. Rg1 {[%emt 0:01:35]} Bb7 {[%emt 0:01:49]} 40. Rg3 {[%emt 0:00:00]} Ba6 {[%emt 0:00:00]} 41. Rg1 {[%emt 0:03:10]} Rb7 {[%emt 0:01:23]} 42. Rh1 {[%emt 0:00:48]} Kg8 {[%emt 0:03:19]} 43. Rg1+ Kh8 1/2-1/2

[Event "IIFL Wealth 4th Mumbai Open"]
[Site "Mumbai"]
[Date "2018.12.31"]
[Round "2"]
[White "Sairaj, Dilip Vernekar"]
[Black "Arhan, Chethan Anand"]
[Result "0-1"]
[ECO "C54"]
[WhiteElo "1445"]
[BlackElo "1710"]
[Annotator "NA"]
[PlyCount "88"]
[EventDate "2018.12.30"]
[EventType "swiss"]
[EventCountry "IND"]
[SourceTitle "playchess.com"]
[Source "ChessBase"]
[SourceQuality "1"]
[TimeControl "40/5400+30:1800+30"]

1. e4 {[%emt 0:00:00]} e5 {[%emt 0:00:00]} 2. Nf3 {[%emt 0:00:00]} Nc6 {[%emt 0:00:00]} 3. d4 {[%emt 0:00:02]} exd4 {[%emt 0:00:00]} 4. Bc4 {[%emt 0:00:05]} Bc5 {[%emt 0:00:00]} 5. c3 {[%emt 0:02:15]} Nf6 {[%emt 0:00:05]} 6. e5 {[%emt 0:03:45]} d5 {[%emt 0:00:13]} 7. Bb5 {[%emt 0:01:05]} Ne4 {[%emt 0:00:14]} 8. cxd4 {[%emt 0:04:49]} Bb6 {[%emt 0:00:04]} 9. O-O {[%emt 0:02:49]} O-O {[%emt 0:00:39]} 10. Be3 {[%emt 0:05:35]} Bg4 {[%emt 0:04:17]} 11. Be2 {[%emt 0:01:49]} f6 {[%emt 0:03:25]} 12. exf6 {[%emt 0:09:07]} Qxf6 {[%emt 0:02:27]} 13. Nc3 Nxc3 {[%emt 0:03:11]} 14. bxc3 {[%emt 0:03:36]} Rae8 {[%emt 0:04:32]} 15. Qb3 {[%emt 0:01:06]} Qd6 {[%emt 0:02:37]} 16. Rad1 {[%emt 0:04:58]} Na5 {[%emt 0:04:05]} 17. Qc2 {[%emt 0:10:19]} Nc4 {[%emt 0:04:33]} 18. Qc1 {[%emt 0:02:01]} c6 {[%emt 0:02:11]} 19. h3 {[%emt 0:07:47]} Bxf3 {[%emt 0:00:20]} 20. Bxf3 {[%emt 0:00:03]} Bc7 {[%emt 0:00:03]} 21. Rfe1 {[%emt 0:00:48]} Qh2+ {[%emt 0:01:28]} 22. Kf1 {[%emt 0:00:27]} Nxe3+ {[%emt 0:00:44]} 23. Rxe3 {[%emt 0:11:31]} Bf4 {[%emt 0:00:21]} 24. Ke2 {[%emt 0:01:17]} Bxe3 {[%emt 0:00:12]} 25. fxe3 {[%emt 0:00:14]} Qg3 {[%emt 0:06:45]} 26. Rg1 {[%emt 0:07:49]} Rf6 {[%emt 0:04:16]} 27. Qe1 {[%emt 0:02:15]} Qg5 {[%emt 0:01:30]} 28. Kd2 {[%emt 0:02:42]} Rfe6 {[%emt 0:00:19]} 29. Qf2 {[%emt 0:05:18]} Rxe3 {[%emt 0:01:41]} 30. Kc2 {[%emt 0:00:57]} Qf5+ {[%emt 0:01:56]} 31. Kb3 {[%emt 0:05:33]} Re2 {[%emt 0:01:38]} 32. Qxe2 {[%emt 0:00:51]} Rxe2 {[%emt 0:00:14]} 33. Bxe2 {[%emt 0:00:03]} Qf2 {[%emt 0:00:09]} 34. Rb1 {[%emt 0:00:36]} Qxe2 {[%emt 0:00:03]} 35. Rb2 {[%emt 0:00:07]} Qd1+ {[%emt 0:00:14]} 36. Rc2 {[%emt 0:00:37]} a5 {[%emt 0:00:13]} 37. Kb2 {[%emt 0:00:10]} a4 {[%emt 0:00:05]} 38. a3 {[%emt 0:00:13]} b6 {[%emt 0:00:04]} 39. c4 {[%emt 0:00:10]} Qxd4+ {[%emt 0:00:07]} 40. Kc1 {[%emt 0:00:00]} dxc4 {[%emt 0:00:00]} 41. g4 {[%emt 0:00:18]} c3 {[%emt 0:00:09]} 42. Kb1 {[%emt 0:00:10]} Qd1+ {[%emt 0:00:05]} 43. Rc1 {[%emt 0:00:05]} Qb3+ {[%emt 0:00:04]} 44. Ka1 {[%emt 0:00:07]} Qb2# {[%emt 0:00:04]} 0-1

[Event "IIFL Wealth 4th Mumbai Open"]
[Site "Mumbai"]
[Date "2018.12.31"]
[Round "2"]
[White "Mishra, Rahul"]
[Black "Tamhankar, Siddhant"]
[Result "0-1"]
[ECO "B20"]
[WhiteElo "1433"]
[BlackElo "1704"]
[Annotator "NA"]
[PlyCount "40"]
[EventDate "2018.12.30"]
[EventType "swiss"]
[EventCountry "IND"]
[SourceTitle "playchess.com"]
[Source "ChessBase"]
[SourceQuality "1"]
[TimeControl "40/5400+30:1800+30"]

1. e4 c5 2. b4 b6 3. Bc4 e6 4. Bb2 Bb7 5. Qe2 Nf6 6. d3 cxb4 7. a3 Nc6 8. Nf3 Be7 9. h4 Qc7 10. h5 h6 11. c3 Na5 12. e5 Nxc4 13. exf6 Nxb2 14. Qxb2 Bxf6 15. axb4 Bxf3 16. gxf3 O-O 17. d4 e5 18. d5 Rfe8 19. Qd2 e4 20. f4 e3 0-1

[Event "IIFL Wealth 4th Mumbai Open"]
[Site "Mumbai"]
[Date "2018.12.31"]
[Round "2"]
[White "Mahajan, Akash"]
[Black "Mayank, Chakraborty"]
[Result "1/2-1/2"]
[ECO "B90"]
[WhiteElo "1416"]
[BlackElo "1691"]
[Annotator "NA"]
[PlyCount "119"]
[EventDate "2018.12.30"]
[EventType "swiss"]
[EventCountry "IND"]
[SourceTitle "playchess.com"]
[Source "ChessBase"]
[SourceQuality "1"]
[TimeControl "40/5400+30:1800+30"]

1. e4 {[%emt 0:00:00]} c5 {[%emt 0:03:06]} 2. Nf3 {[%emt 0:00:36]} d6 {[%emt 0:00:11]} 3. d4 {[%emt 0:00:16]} cxd4 {[%emt 0:00:06]} 4. Nxd4 {[%emt 0:00:08]} Nf6 {[%emt 0:00:11]} 5. Nc3 {[%emt 0:00:09]} a6 {[%emt 0:00:04]} 6. h3 {[%emt 0:00:53]} e6 {[%emt 0:00:10]} 7. Bd3 {[%emt 0:00:32]} Be7 {[%emt 0:00:42]} 8. O-O {[%emt 0:00:32]} Qc7 {[%emt 0:00:12]} 9. Be3 {[%emt 0:00:45]} b5 {[%emt 0:00:22]} 10. a3 {[%emt 0:03:50]} Bb7 {[%emt 0:00:18]} 11. f4 {[%emt 0:01:55]} Nbd7 {[%emt 0:00:54]} 12. f5 {[%emt 0:02:06]} e5 {[%emt 0:00:43]} 13. Nb3 {[%emt 0:01:11]} Nc5 {[%emt 0:01:59]} 14. Nxc5 {[%emt 0:09:17]} dxc5 {[%emt 0:00:10]} 15. Nd5 {[%emt 0:04:49]} Bxd5 {[%emt 0:01:01]} 16. exd5 {[%emt 0:03:27]} c4 {[%emt 0:00:42]} 17. d6 {[%emt 0:22:54]} Qxd6 {[%emt 0:00:10]} 18. Qf3 {[%emt 0:01:51]} O-O {[%emt 0:01:40]} 19. Be4 {[%emt 0:02:18]} Nxe4 {[%emt 0:06:36]} 20. Qxe4 {[%emt 0:01:04]} Rad8 {[%emt 0:02:48]} 21. Qg4 {[%emt 0:05:24]} Bf6 {[%emt 0:03:32]} 22. h4 {[%emt 0:03:22]} Kh8 {[%emt 0:01:25]} 23. Rf3 {[%emt 0:05:03]} Qe7 {[%emt 0:00:40]} 24. Raf1 {[%emt 0:04:55]} Qb7 {[%emt 0:08:48]} 25. Qh5 {[%emt 0:06:41]} Qe4 {[%emt 0:05:33]} 26. Bc5 {[%emt 0:08:01]} Rg8 {[%emt 0:02:27]} 27. Qxf7 {[%emt 0:05:01]} Qd5 {[%emt 0:00:19]} 28. Qxd5 {[%emt 0:01:28]} Rxd5 {[%emt 0:00:02]} 29. Be3 {[%emt 0:01:02]} Bxh4 {[%emt 0:00:42]} 30. Rh3 {[%emt 0:00:16]} Bf6 {[%emt 0:00:09]} 31. g4 {[%emt 0:00:30]} Be7 {[%emt 0:10:34]} 32. Kg2 {[%emt 0:00:51]} Rf8 {[%emt 0:02:18]} 33. Kf3 {[%emt 0:04:21]} Kg8 {[%emt 0:01:07]} 34. Ke4 {[%emt 0:00:42]} Rd7 {[%emt 0:00:33]} 35. g5 {[%emt 0:00:29]} Bd6 {[%emt 0:06:41]} 36. Rfh1 {[%emt 0:00:37]} g6 {[%emt 0:00:38]} 37. fxg6 {[%emt 0:00:27]} hxg6 {[%emt 0:00:12]} 38. Rh8+ {[%emt 0:00:15]} Kf7 {[%emt 0:00:16]} 39. R1h7+ {[%emt 0:00:00]} Ke6 {[%emt 0:00:00]} 40. Rxf8 Bxf8 41. Rxd7 Kxd7 42. Kd5 Bd6 43. Bf2 a5 44. Bg3 c3 45. b3 Bxa3 46. Bxe5 Bb4 47. Bf6 Kc7 48. Be5+ Kb6 49. Bd4+ Ka6 50. Bf6 a4 51. bxa4 bxa4 52. Kc4 Ba5 53. Be7 Kb6 54. Bd8+ Ka6 55. Be7 Bc7 56. Kb4 Kb6 57. Kxa4 Bf4 58. Kb4 Bd2 59. Kc4 Kc6 60. Kd4 1/2-1/2

[Event "IIFL Wealth 4th Mumbai Open"]
[Site "Mumbai"]
[Date "2018.12.31"]
[Round "2"]
[White "Adarsh, Sanklecha"]
[Black "Shetye, Shyam"]
[Result "1-0"]
[ECO "B28"]
[WhiteElo "1414"]
[BlackElo "1685"]
[Annotator "NA"]
[PlyCount "103"]
[EventDate "2018.12.30"]
[EventType "swiss"]
[EventCountry "IND"]
[SourceTitle "playchess.com"]
[Source "ChessBase"]
[SourceQuality "1"]
[TimeControl "40/5400+30:1800+30"]

1. e4 c5 2. Nf3 a6 3. d4 cxd4 4. Nxd4 Nf6 5. Nc3 e5 6. Nb3 Bb4 7. Bg5 Bxc3+ 8. bxc3 h6 9. Bh4 g5 10. Bg3 Nxe4 11. Qd5 Nxg3 12. Qxe5+ Qe7 13. Qxe7+ Kxe7 14. hxg3 Nc6 15. O-O-O d6 16. Bd3 Be6 17. Kb2 Kf6 18. Be4 Rad8 19. Nd4 d5 20. Bd3 Ne5 21. f3 Kg7 22. Rhe1 Nxd3+ 23. cxd3 Rhe8 24. Re5 Bc8 25. Rde1 Bd7 26. Nf5+ Kg6 27. Ne7+ Kg7 28. Nxd5 Rxe5 29. Rxe5 Bc6 30. Nb4 Rd6 31. Nxc6 Rxc6 32. c4 Kf6 33. Re2 h5 34. Kc3 b5 35. Re4 bxc4 36. Rxc4 Re6 37. Kd2 Rb6 38. Rc2 h4 39. gxh4 gxh4 40. Ke3 Kg5 41. d4 Re6+ 42. Kd3 Kf4 43. Re2 Rb6 44. d5 Kg3 45. Kc4 a5 46. Kc5 Rb1 47. Rd2 Rc1+ 48. Kb6 a4 49. d6 Rb1+ 50. Kc7 a3 51. d7 Rc1+ 52. Kd6 1-0

[Event "IIFL Wealth 4th Mumbai Open"]
[Site "Mumbai"]
[Date "2018.12.31"]
[Round "2"]
[White "Amrit, Raunak"]
[Black "Sunil, Vaidya"]
[Result "1-0"]
[ECO "B14"]
[WhiteElo "1410"]
[BlackElo "1663"]
[Annotator "NA"]
[PlyCount "67"]
[EventDate "2018.12.30"]
[EventType "swiss"]
[EventCountry "IND"]
[SourceTitle "playchess.com"]
[Source "ChessBase"]
[SourceQuality "1"]
[TimeControl "40/5400+30:1800+30"]

1. e4 c6 2. d4 d5 3. exd5 cxd5 4. c4 Nf6 5. Nc3 e6 6. Nf3 Be7 7. Be2 O-O 8. O-O Nc6 9. Bg5 Ne4 10. Bxe7 Qxe7 11. cxd5 Nxc3 12. bxc3 exd5 13. h3 Be6 14. Bb5 Rac8 15. Bxc6 Rxc6 16. Qd2 Rfc8 17. Rac1 Qa3 18. Rb1 Rxc3 19. Rxb7 Rc2 20. Qf4 Rxa2 21. Ng5 Qf8 22. Re1 Ra6 23. Qg3 h6 24. Qd3 hxg5 25. Qxa6 g4 26. hxg4 Bxg4 27. Qxa7 Be6 28. Rb3 g6 29. Qb6 Qh6 30. Rbb1 Bf5 31. Ra1 Be4 32. Qb7 Rc2 33. Qb8+ Kh7 34. Ra8 1-0

[Event "IIFL Wealth 4th Mumbai Open"]
[Site "Mumbai"]
[Date "2018.12.31"]
[Round "2"]
[White "Abhyuday, Santhosh"]
[Black "Shreyas, Ghadi"]
[Result "1/2-1/2"]
[ECO "E32"]
[WhiteElo "1409"]
[BlackElo "1653"]
[Annotator "NA"]
[PlyCount "111"]
[EventDate "2018.12.30"]
[EventType "swiss"]
[EventCountry "IND"]
[SourceTitle "playchess.com"]
[Source "ChessBase"]
[SourceQuality "1"]
[TimeControl "40/5400+30:1800+30"]

1. d4 {[%emt 0:00:00]} Nf6 {[%emt 0:00:00]} 2. c4 {[%emt 0:00:00]} e6 {[%emt 0:00:00]} 3. Nc3 {[%emt 0:00:11]} Bb4 {[%emt 0:00:00]} 4. Qc2 {[%emt 0:00:23]} O-O {[%emt 0:00:00]} 5. a3 {[%emt 0:01:14]} Bxc3+ {[%emt 0:00:40]} 6. Qxc3 {[%emt 0:00:13]} b6 {[%emt 0:00:35]} 7. Nf3 {[%emt 0:00:20]} Bb7 {[%emt 0:00:37]} 8. Bg5 {[%emt 0:00:45]} d6 {[%emt 0:00:40]} 9. g3 {[%emt 0:02:02]} Nbd7 {[%emt 0:02:11]} 10. Bg2 {[%emt 0:00:16]} Rc8 {[%emt 0:02:07]} 11. O-O {[%emt 0:04:54]} c5 {[%emt 0:00:48]} 12. Rad1 {[%emt 0:02:25]} h6 {[%emt 0:01:42]} 13. Bxf6 {[%emt 0:00:49]} Nxf6 {[%emt 0:00:46]} 14. dxc5 {[%emt 0:00:44]} Rxc5 {[%emt 0:00:31]} 15. b4 {[%emt 0:00:21]} Rc7 {[%emt 0:00:55]} 16. Qd4 {[%emt 0:04:26]} Rd7 {[%emt 0:11:00]} 17. Rfe1 {[%emt 0:09:02]} Qe7 {[%emt 0:01:16]} 18. e4 {[%emt 0:00:26]} e5 {[%emt 0:00:16]} 19. Qd3 {[%emt 0:00:28]} Rfd8 {[%emt 0:04:20]} 20. Nd2 {[%emt 0:08:01]} Rf8 {[%emt 0:08:29]} 21. Nf1 {[%emt 0:04:04]} Rdd8 {[%emt 0:02:54]} 22. Ne3 {[%emt 0:06:56]} g6 {[%emt 0:00:15]} 23. Qc2 {[%emt 0:15:45]} Nh5 {[%emt 0:04:40]} 24. Bf3 {[%emt 0:04:02]} Ng7 {[%emt 0:00:38]} 25. Bg2 {[%emt 0:09:39]} Ne6 {[%emt 0:00:24]} 26. Qd3 {[%emt 0:00:56]} h5 {[%emt 0:06:28]} 27. Nf1 {[%emt 0:11:29]} Nd4 {[%emt 0:01:54]} 28. Ne3 {[%emt 0:00:33]} Kg7 {[%emt 0:09:21]} 29. Nc2 {[%emt 0:01:05]} Ne6 {[%emt 0:00:01]} 30. Ne3 {[%emt 0:00:22]} Nd4 {[%emt 0:07:41]} 31. Nc2 {[%emt 0:00:10]} Nxc2 {[%emt 0:00:03]} 32. Qxc2 {[%emt 0:00:26]} f5 {[%emt 0:00:28]} 33. Qb3 {[%emt 0:05:10]} Qf7 {[%emt 0:01:36]} 34. exf5 {[%emt 0:01:18]} Bxg2 {[%emt 0:00:17]} 35. Kxg2 {[%emt 0:00:13]} Qxf5 {[%emt 0:00:02]} 36. Qe3 {[%emt 0:00:37]} h4 {[%emt 0:02:20]} 37. gxh4 {[%emt 0:04:09]} Qg4+ {[%emt 0:02:04]} 38. Qg3 {[%emt 0:00:29]} Qxc4 {[%emt 0:02:44]} 39. Rc1 {[%emt 0:00:43]} Qd5+ {[%emt 0:01:06]} 40. Kg1 {[%emt 0:00:00]} Rc8 {[%emt 0:00:00]} 41. h5 {[%emt 0:02:02]} Qe6 {[%emt 0:00:37]} 42. Qxg6+ {[%emt 0:01:42]} Qxg6+ {[%emt 0:00:01]} 43. hxg6 {[%emt 0:00:08]} Kxg6 {[%emt 0:00:03]} 44. Rcd1 {[%emt 0:00:11]} Rf6 {[%emt 0:00:35]} 45. Re3 {[%emt 0:00:17]} Rc2 {[%emt 0:00:38]} 46. Rf1 {[%emt 0:01:30]} Kf7 {[%emt 0:02:00]} 47. Kg2 {[%emt 0:00:18]} Ke6 {[%emt 0:00:21]} 48. h4 {[%emt 0:00:34]} d5 {[%emt 0:00:28]} 49. h5 {[%emt 0:00:24]} d4 {[%emt 0:00:09]} 50. Rh3 {[%emt 0:00:14]} Rh6 {[%emt 0:01:12]} 51. Rfh1 {[%emt 0:00:44]} e4 {[%emt 0:00:54]} 52. Kg3 {[%emt 0:02:37]} Kf5 {[%emt 0:00:24]} 53. Rh4 {[%emt 0:03:11]} Rc3+ {[%emt 0:00:06]} 54. Kg2 {[%emt 0:00:08]} Rxa3 {[%emt 0:01:00]} 55. Re1 {[%emt 0:01:27]} e3 {[%emt 0:00:12]} 56. Rxd4 {[%emt 0:01:27]} 1/2-1/2

[Event "IIFL Wealth 4th Mumbai Open"]
[Site "Mumbai"]
[Date "2018.12.31"]
[Round "2"]
[White "Ananya, Arumbakkam"]
[Black "Sathish Chandra, G."]
[Result "0-1"]
[ECO "B31"]
[WhiteElo "1405"]
[BlackElo "1632"]
[Annotator "NA"]
[PlyCount "65"]
[EventDate "2018.12.30"]
[EventType "swiss"]
[EventCountry "IND"]
[SourceTitle "playchess.com"]
[Source "ChessBase"]
[SourceQuality "1"]
[TimeControl "40/5400+30:1800+30"]

1. e4 c5 2. Nf3 Nc6 3. Bb5 g6 4. Bxc6 dxc6 5. d3 Bg7 6. Nc3 Qc7 7. O-O b6 8. Qe2 Nf6 9. a4 a5 10. h3 Nh5 11. e5 Bf8 12. Ne4 Ng7 13. Nd6+ Kd7 14. Nxf7 Rg8 15. N3g5 h5 16. Bf4 e6 17. Qe4 Ne8 18. d4 Ba6 19. Rfd1 Kc8 20. dxc5 Bxc5 21. Nh6 Rh8 22. Nxe6 Qe7 23. Qxc6+ Nc7 24. Nxc7 Bb7 25. Qe6+ Kxc7 26. Qxe7+ Bxe7 27. e6+ Kc6 28. Rd7 g5 29. Rc7+ Kd5 30. Rd1+ Ke4 31. Re1+ Kd5 32. Re5+ Kd4 33. Nf5# 0-1